Cogmind - Beta 12 X4 @@@ ROGUE MODE // 2022.12.17 @ 22:23:58 Player: aperiodic Result: Destroyed by Y-64 Sentinel with KE Penetrator Performance ------------- Evolutions (5) 2500 Regions Visited (18) 3600 Robots Destroyed (322) 1610 Value Destroyed (8910) 8910 Prototype IDs (76) 1520 Alien Tech Used (0) 0 Bonus (1918) 1918 TOTAL SCORE: 20058 Bonus ------- High Alert Combat Kills 644 Follower Combat Kills 557 Entered Garrisons 200 Aligned with FarCom 300 Met Data Miner 300 Friendly Fire -83 Cogmind --------- Core Integrity 0/1000 Matter 50/300 Energy 40/100 System Corruption 14% Temperature Cool (41) Movement Core (850) Ox16 Location -5/Factory Parts ------- > --- POWER (2) -------- (None) > --- PROPULSION (4) --- (None) > --- UTILITY (8) ------ High-capacity Storage Unit Improved Signal Interpreter Advanced Targeting Computer > --- WEAPON (3) ------- Neutron Cannon > --- INVENTORY (20) --- Light Fission Core Advanced Cooling System Improved Energy Well (400) High-capacity Matter Pod (200) Enhanced Optical Array Encrypted Comm Array Experimental Core Analyzer System Purifier Long-range Tractor Beam Long-range Missile Launcher Lance Peak State ------------ > --- POWER ------------ F-cell Engine > --- PROPULSION ------- Advanced Myomer Leg Advanced Myomer Leg Advanced Myomer Leg Advanced Myomer Leg > --- UTILITY ---------- High-capacity Storage Unit Experimental Sensor Array Improved Signal Interpreter Advanced Targeting Computer Improved Hacking Suite Improved System Shield System Purifier > --- WEAPON ----------- Enhanced Autogun 8R-AWN's Boregun 8R-AWN's Boregun > --- INVENTORY -------- F-cell Engine Advanced Myomer Leg Experimental Heat Sink High-capacity Matter Pod Enhanced Optical Array Experimental Core Analyzer Advanced Weapon Cycler Advanced Transmission Jammer Improved Weapon Shielding Improved Medium Armor Plating Improved Medium Armor Plating Improved Medium Armor Plating Improved Heavy Armor Plating Improved Shield Generator Improved Heavy Laser Enhanced Autogun Long-range Missile Launcher Great Maul [Rating: 106] Favorites ----------- Power F-cell Engine Engine F-cell Engine Power Core Light Nuclear Core Reactor Cold Fusion Reactor Propulsion Advanced Myomer Leg Treads Advanced Treads Leg Advanced Myomer Leg Wheel Armored Wheel Flight Unit VTOL Module Utility High-capacity Storage Unit Device Experimental Sensor Array Storage High-capacity Storage Unit Processor Improved Signal Interpreter Hackware System Shield Protection Improved Medium Armor Plating Weapon Enhanced Autogun Energy Gun Improved Medium Laser Energy Cannon Particle Cannon Ballistic Gun Enhanced Autogun Ballistic Cannon Light Antimatter Cannon Launcher Long-range Missile Launcher Impact Weapon Great Maul Slashing Weapon Longsword +1 Piercing Weapon Lance Build | -11 -10 -10 -9 -9 -9 -8 -8 -8 -8 -8 -6 -6 -6 -6 -5 -5 -5 -5 ------- Run | Scr Mat Min Mat Min Exi Min Mat Sto Gar Rec Fac Low Low Dat Pro Fac Was Fac Slots Evolved 10 | . . . 2 . . . 2 . . . 4 . . . . 2 . . Power 1 | . . . . . . . . . . . . . . . . 1 . . Propulsion 2 | . . . . . . . 1 . . . 1 . . . . . . . Utility 6 | . . . 1 . . . 1 . . . 3 . . . . 1 . . Weapon 1 | . . . 1 . . . . . . . . . . . . . . . Parts Attached 363 | 8 10 2 32 10 42 6 34 25 39 12 61 20 6 3 14 5 1 33 Power 25 | 2 2 1 3 1 4 2 4 1 . . 1 1 . . 1 2 . . Engine 14 | 2 2 . 3 1 1 . 2 1 . . 1 1 . . . . . . Core 10 | . . 1 . . 2 2 2 . . . . . . . 1 2 . . Reactor 1 | . . . . . 1 . . . . . . . . . . . . . Propulsion 32 | 2 2 1 5 . 3 . 7 2 . 1 3 1 . . . . 1 4 Treads 1 | . . . . . 1 . . . . . . . . . . . . . Leg 20 | . . . . . 2 . 7 2 . 1 3 1 . . . . 1 3 Wheel 10 | 2 2 1 5 . . . . . . . . . . . . . . . Hover . | . . . . . . . . . . . . . . . . . . . Flight 1 | . . . . . . . . . . . . . . . . . . 1 Utility 125 | 1 4 . 5 2 18 . 5 4 8 3 37 8 4 . 7 3 . 16 Device 43 | . . . 3 . 3 . 1 . 1 1 18 4 2 . 3 2 . 5 Storage 10 | 1 3 . . . 5 . . . . . . . . . . 1 . . Processor 5 | . 1 . . . 2 . . . . 1 1 . . . . . . . Hackware 9 | . . . . . . . 1 1 . 1 5 . . . . . . 1 Protection 58 | . . . 2 2 8 . 3 3 7 . 13 4 2 . 4 . . 10 Artifact . | . . . . . . . . . . . . . . . . . . . Weapon 181 | 3 2 . 19 7 17 4 18 18 31 8 20 10 2 3 6 . . 13 Energy Gun 19 | 1 . . 3 . . . 1 2 11 . . 1 . . . . . . Energy Cannon 16 | . 2 . 9 1 1 . . . . . . . . . . . . 3 Ballistic Gun 85 | 2 . . 3 3 9 2 11 10 15 4 11 6 1 3 3 . . 2 Ballistic Cannon 2 | . . . . . . . . . . . . . . . . . . 2 Launcher 22 | . . . 2 2 1 2 2 . 4 . 3 1 . . 2 . . 3 Special Weapon . | . . . . . . . . . . . . . . . . . . . Impact Weapon 11 | . . . . . . . . . . 1 6 2 1 . 1 . . . Slashing Weapon 23 | . . . 2 1 6 . 4 6 1 3 . . . . . . . . Piercing Weapon 3 | . . . . . . . . . . . . . . . . . . 3 Special Melee Weapon . | . . . . . . . . . . . . . . . . . . . Unidentified Prototypes 17 | . . . 4 . 7 . 1 2 . . . . . . . . . 3 Corrupted Parts 3 | . . . . . 1 . . . . 1 1 . . . . . . . System Corruption 8 | . . . . . 2 . . . . 2 4 . . . . . . . Parts Lost 35 | . . . . 1 2 . 1 1 . . 3 . . . 3 1 1 22 Power 6 | . . . . . . . 1 . . . 1 . . . 2 . . 2 Propulsion 6 | . . . . . 1 . . . . . . . . . . . . 5 Utility 15 | . . . . 1 . . . 1 . . 2 . . . 1 1 . 9 Weapon 8 | . . . . . 1 . . . . . . . . . . . 1 6 Highest Loss Streak 14 | . . . . 1 1 . 1 1 . . 2 . . . 1 1 1 14 To Critical Strikes 3 | . . . . . 2 . . . . . . . . . . . . 1 Average Slot Usage (%) 94 | . 96 100 99 100 84 100 93 89 98 100 98 92 93 78 93 92 92 94 Engine 6 | . 14 6 9 11 3 3 3 9 9 9 5 5 6 6 4 . . . Core 2 | . . 7 1 . 7 7 5 . . . . . . . . 4 11 10 Leg 17 | . . . . . 5 22 26 27 27 27 25 26 26 26 26 23 23 21 Wheel 6 | . 28 28 22 22 10 . . . . . . . . . . . . . Device 4 | . . . 10 10 . . . . 4 8 9 5 5 6 5 7 11 9 Storage 9 | . 14 14 11 11 11 11 9 9 9 9 6 6 6 6 6 5 5 5 Processor 7 | . 10 14 5 . 9 11 4 . . 8 8 13 13 13 13 11 11 11 Hackware 5 | . . . . . . . 4 9 9 9 15 6 6 6 6 5 5 9 Protection 7 | . . . 5 11 9 11 13 8 12 1 4 6 6 6 7 14 6 6 Energy Gun 2 | . 3 . 9 20 . . . . 1 . . . . . . . . . Energy Cannon 3 | . 21 28 21 10 . . . . . . . . . . . . . . Ballistic Gun 15 | . 3 . . 2 11 32 25 25 24 25 16 18 19 5 18 17 14 10 Slashing Weapon 1 | . . . . . 9 . . . . 1 . . . . . . . . Naked Turns . | . . . . . . . . . . . . . . . . . . . Heaviest Build 100 | 14 51 53 63 65 99 60 75 78 78 75 84 83 83 77 83 80 80 100 Greatest Support 120 | 26 26 26 26 24 60 60 80 78 78 78 120 90 90 90 90 90 90 95 Greatest Overweight (x) 8 | . 1 2 2 2 8 . 1 . . . 1 1 . . . . . 1 Average Overweight (x) . | . . 1 2 2 2 . . . . . . . . . . . . . Largest Inventory Capacity 20 | 8 20 20 20 20 20 20 20 20 20 20 20 20 20 20 20 20 20 20 Average Capacity 19 | 7 15 20 20 20 18 20 20 20 20 20 20 20 20 20 20 20 20 20 Most Carried 20 | 4 19 20 20 20 20 20 20 20 20 20 20 20 20 20 20 20 19 20 Average Carried 18 | 2 12 19 19 19 14 19 19 19 19 19 19 19 19 20 19 16 19 18 Final Capacity 20 | 8 20 20 20 20 20 20 20 20 20 20 20 20 20 20 20 20 20 20 Final Carried 20 | 4 19 20 20 18 20 20 20 20 20 20 16 20 20 20 17 19 19 11 Class Distribution -------------------- 30% | Mutant 28% | Tank 9% | Hacker-Mutant 7% | Machinist-Skirmisher 6% | Gunner 4% | Hacker-Skirmisher 3% | Skirmisher 3% | Commander-Tank Dominant Class ---------------- Mutant | -10/Materials Mutant | -10/Mines Gunner | -9/Materials Tank | -9/Mines Mutant | -9/Exiles Gunner | -8/Mines Tank | -8/Materials Tank | -8/Storage Tank | -8/Garrison Skirmisher | -8/Recycling Hacker-Mutant | -6/Factory Machinist-Skirmisher | -6/Lower Caves Machinist-Skirmisher | -6/Lower Caves Machinist-Mutant | -6/Data Miner Machinist-Skirmisher | -5/Proximity Caves Tank | -5/Factory Tank | -5/Waste Hacker-Mutant | -5/Factory Resources | -11 -10 -10 -9 -9 -9 -8 -8 -8 -8 -8 -6 -6 -6 -6 -5 -5 -5 -5 ----------- Run | Scr Mat Min Mat Min Exi Min Mat Sto Gar Rec Fac Low Low Dat Pro Fac Was Fac Matter Collected 9488 | 222 203 54 332 57 474 659 970 852 1059 526 1909 478 132 . 474 149 . 938 Remotely 84 | . . . . . . . . . . . . . . . . . . 84 Salvage Created 13338 | . 525 156 1219 307 479 532 1510 1437 850 627 2599 301 100 . 632 238 . 1826 Parts 717 | . 41 6 75 20 70 41 105 67 56 24 80 3 6 . 26 7 . 90 Haulers Intercepted 21 | . 1 . 5 . . . 5 4 . . 2 . . . . . . 4 Recyclers Shooed 13 | . . . 1 . . . . . . 2 3 . . . . 2 . 5 Parts Field Recycled . | . . . . . . . . . . . . . . . . . . . Retrieved Matter . | . . . . . . . . . . . . . . . . . . . Parts Self-Destructed 36 | . . . . . . . . . . . . 3 6 . 27 . . . Prevented . | . . . . . . . . . . . . . . . . . . . Kills | -11 -10 -10 -9 -9 -9 -8 -8 -8 -8 -8 -6 -6 -6 -6 -5 -5 -5 -5 ------- Run | Scr Mat Min Mat Min Exi Min Mat Sto Gar Rec Fac Low Low Dat Pro Fac Was Fac Combat Hostiles Destroyed 211 | . 13 4 20 8 2 9 24 24 23 8 28 7 2 . 22 1 . 16 Melee 4 | . . . . . 1 . . . . . 2 . . . . . . 1 Guns 118 | . 5 . 2 1 . 3 14 24 15 8 21 5 2 . 8 1 . 9 Cannons 28 | . 8 4 12 1 . . . . . . . . . . . . . 3 AOE 58 | . . . 6 5 1 6 10 . 8 . 3 2 . . 14 . . 3 Classes Destroyed 20 | . 6 1 3 . 3 . 2 1 . 1 1 . . . . . . 2 Worker 26 | . 1 . 1 1 . 3 2 1 . . 9 . . . . 1 . 7 Builder 6 | . . . . . . . 2 . . . 1 . . . . . . 3 Tunneler 6 | . . 1 2 . . 2 . . . . . . . . . . . 1 Hauler 21 | . 1 . 5 . . . 5 4 . . 2 . . . . . . 4 Recycler 28 | . 1 . 2 1 . 3 1 1 . 8 6 . . . . 1 . 4 Mechanic 2 | . . . . . . . . 1 . . 1 . . . . . . . Drone 8 | . . . . . . . . . . 8 . . . . . . . . Turret 1 | . . . . . 1 . . . . . . . . . . . . . Watcher 12 | . 3 . 3 . . . 5 1 . . . . . . . . . . Swarmer 57 | . 6 1 5 3 . 6 4 4 4 . 3 2 . . 10 . . 9 Grunt 82 | . 7 3 7 5 . 2 8 8 13 . 14 3 1 . 11 . . . Brawler 3 | . . . 1 . . . . . 1 . 1 . . . . . . . Duelist 8 | . . . 1 . . 1 1 . . . 4 1 . . . . . . Protector 1 | . . . . . . . . . . . . . . . . . . 1 Sentry 36 | . . . 6 . . . 9 11 5 . 1 1 . . 1 1 . 1 Specialist 1 | . . . . . . . . . . . . . . . . . . 1 Hunter 5 | . . . . . . . 2 1 . . . . . . . . . 2 Programmer 8 | . . . . . . . . . . . 5 . 1 . . . . 2 Zionite 8 | . . . . . 8 . . . . . . . . . . . . . Assembled 1 | . . . . . 1 . . . . . . . . . . . . . Best Kill Streak 14 | . 3 3 5 6 3 5 7 6 4 3 9 4 1 . 14 2 . 12 Combat Bots Only 14 | . 3 2 5 6 1 3 7 4 4 2 6 4 1 . 14 1 . 6 Max Kills in Single Turn 5 | . 1 1 4 3 1 2 5 2 2 1 3 1 1 . 3 1 . 4 Gunslinging 1 | . . . . . . . . 1 . . . . . . . . . . Exploded 5 | . . . 4 3 1 2 5 . 2 . 2 1 . . 3 . . 2 Melee 1 | . . . . . 1 . . . . . 1 . . . . . . 1 Uniques/NPCs Destroyed 4 | . . . . . 4 . . . . . . . . . . . . . 8R-AWN (-9/Exiles) EX-BIN (-9/Exiles) EX-HEX (-9/Exiles) EX-DEC (-9/Exiles) Combat | -11 -10 -10 -9 -9 -9 -8 -8 -8 -8 -8 -6 -6 -6 -6 -5 -5 -5 -5 -------- Run | Scr Mat Min Mat Min Exi Min Mat Sto Gar Rec Fac Low Low Dat Pro Fac Was Fac Damage Taken 11909 | . 341 133 335 189 630 138 643 848 668 . 1991 398 121 . 1335 138 36 3965 Core 1942 | . 76 36 138 . 74 37 66 81 17 . 190 26 35 . 143 . . 1023 Absorbed by Shields 277 | . . . . . . . . . 10 . 267 . . . . . . . Redirected to Shielding 187 | . . . . . . . . . . . 42 44 . . . . . 101 Regen/Repaired (Parts) 541 | . . . . . . . 224 196 . . 121 . . . . . . . Core Remaining (%) 63 | 100 . 55 . . . 37 . . . 70 . . . . 53 . . . Volleys Fired 606 | . 42 12 44 11 26 17 65 63 93 45 78 14 6 . 30 10 . 50 Largest 3 | . 2 2 3 3 2 3 3 3 3 3 3 3 3 . 3 3 . 3 Hottest 204 | . 136 136 204 180 100 76 69 111 115 75 85 75 75 . 75 75 . 150 Shots Fired 1436 | . 84 24 128 29 30 35 181 183 168 113 219 32 18 . 65 30 . 97 Gun 1192 | . 40 . 36 18 20 29 174 183 150 113 213 30 18 . 55 30 . 83 Cannon 183 | . 44 24 90 9 6 . . . . . . . . . . . . 10 Launcher 61 | . . . 2 2 4 6 7 . 18 . 6 2 . . 10 . . 4 Special . | . . . . . . . . . . . . . . . . . . . Kinetic 1073 | . 20 . . . 20 29 174 176 107 113 213 27 18 . 55 30 . 91 Thermal 302 | . 64 24 126 27 6 . . 7 43 . . 3 . . . . . 2 Explosive 61 | . . . 2 2 4 6 7 . 18 . 6 2 . . 10 . . 4 Electromagnetic . | . . . . . . . . . . . . . . . . . . . Robot Hit Streak 25 | . 19 4 13 12 3 13 19 17 9 6 25 16 6 . 16 12 . 12 Robot Miss Streak 12 | . 3 3 3 1 2 1 6 2 4 12 4 3 1 . 2 2 . 5 Penetration Max 2 | . . . . . 1 1 . . . . 2 . . . . . . 2 Secondary Targets 17 | . . . . . . 1 . 2 3 . 2 2 . . 5 . . 2 Max Gunslinging Chain 1 | . . . . . . 1 . 1 1 . 1 1 . . 1 . . 1 Shots Hit Robots 987 | . 49 12 71 21 63 25 117 131 84 39 184 23 13 . 48 26 . 81 Core Hits 543 | . 25 5 39 11 27 22 79 56 42 15 92 15 5 . 45 10 . 55 Critical Kills 24 | . . 1 . . 1 3 1 . 1 . 8 . . . 1 . . 8 Critical Parts Destroyed 49 | . . . . . 4 . 1 3 1 1 20 . 1 . 2 . . 16 Critical Strikes 89 | . 2 1 1 2 13 3 2 4 2 1 29 . 1 . 3 . . 25 Burn 6 | . 2 . 1 2 . . . 1 . . . . . . . . . . Meltdown 1 | . . 1 . . . . . . . . . . . . . . . . Destroy 67 | . . . . . 5 3 2 3 2 1 23 . 1 . 3 . . 24 Blast 1 | . . . . . . . . . . . . . . . . . . 1 Smash 6 | . . . . . . . . . . . 6 . . . . . . . Sever 8 | . . . . . 8 . . . . . . . . . . . . . Melee Attacks 177 | . . . 2 1 62 . 9 12 5 10 36 7 1 . 2 . . 30 Impact 48 | . . . . . . . . . . 2 36 7 1 . 2 . . . Slashing 99 | . . . 2 1 62 . 9 12 5 8 . . . . . . . . Piercing 30 | . . . . . . . . . . . . . . . . . . 30 Sneak Attacks 30 | . . . . . 1 . . . . 2 10 . . . . . . 17 Combat Hostiles 1 | . . . . . . . . . . . 1 . . . . . . . Follow-up Attacks 10 | . . . . . 10 . . . . . . . . . . . . . Damage Inflicted 28917 | . 758 270 1905 626 2845 775 2527 2197 2195 792 6029 954 251 . 2523 434 . 3836 Guns 13581 | . 285 . 427 244 165 376 1781 2193 1452 626 3152 341 251 . 668 434 . 1186 Cannons 2381 | . 473 270 1127 128 . . . . . . . . . . . . . 383 Explosions 7263 | . . . 351 254 380 399 681 . 743 . 1214 382 . . 1855 . . 1004 Melee 5554 | . . . . . 2300 . . . . 166 1596 231 . . . . . 1261 Ramming 138 | . . . . . . . 65 4 . . 67 . . . . . . 2 Kinetic 12828 | . 98 . . . 165 376 1781 2087 1371 626 3152 341 251 . 668 434 . 1478 Thermal 3401 | . 660 270 1554 372 267 . . 106 81 . . . . . . . . 91 Explosive 6975 | . . . 351 254 113 399 681 . 743 . 1193 382 . . 1855 . . 1004 Electromagnetic 21 | . . . . . . . . . . . 21 . . . . . . . Impact 1993 | . . . . . . . . . . 166 1596 231 . . . . . . Slashing 2300 | . . . . . 2300 . . . . . . . . . . . . . Piercing 1261 | . . . . . . . . . . . . . . . . . . 1261 Highest Corruption 14 | . 2 2 . . 2 2 1 1 1 3 6 2 3 3 3 . 6 14 Average Corruption 2 | . 2 2 . . 2 2 1 1 1 1 2 2 2 3 3 . 6 6 Corruption Purged 12 | . . . . . . . . . . . 12 . . . . . . . Corruption Blocked . | . . . . . . . . . . . . . . . . . . . Effects 254 | . 14 10 . . 43 3 20 17 13 6 44 15 12 4 15 . 4 34 Message Errors 67 | . 2 3 . . 13 1 7 3 3 . 10 4 3 1 3 . . 14 Matter Fused 67 | . 3 4 . . 10 2 5 7 2 2 11 7 . 2 3 . 2 7 Heat Flow Errors 29 | . 1 . . . 3 . 5 1 2 . 4 1 4 . 4 . 1 3 Energy Discharges 24 | . 4 1 . . 4 . . 1 3 1 8 . . . . . . 2 Parts Rejected 4 | . . . . . . . . 1 . . . . . . 1 . 1 1 Data Loss (minor) 27 | . 3 1 . . 7 . . 3 1 . 3 1 4 1 1 . . 2 Data Loss (major) 15 | . 1 . . . 3 . 1 . . 2 5 2 1 . . . . . Misfires 4 | . . . . . 1 . . . 1 1 . . . . . . . 1 Alerts 10 | . . 1 . . 2 . 2 . 1 . 2 . . . 1 . . 1 Weapon Failures 7 | . . . . . . . . 1 . . 1 . . . 2 . . 3 Overload Shots . | . . . . . . . . . . . . . . . . . . . Overflow Damage 997 | . 1 1 . . 117 1 24 . 31 128 436 44 . . 56 . . 158 Projectiles 2 | . 1 1 . . . . . . . . . . . . . . . . Explosions 101 | . . . . . . 1 . . 31 . 4 . . . 56 . . 9 Melee 894 | . . . . . 117 . 24 . . 128 432 44 . . . . . 149 Knockbacks 12 | . . . . . . . . . . 1 8 . . . . . . 3 Impact 9 | . . . . . . . . . . 1 8 . . . . . . . Kinetic 3 | . . . . . . . . . . . . . . . . . . 3 Secondary . | . . . . . . . . . . . . . . . . . . . Self-Inflicted Damage 268 | . . . . 54 . . 76 . 54 . . 41 . . 38 . . 5 Shots 14 | . . . . 2 . . 4 . 3 . . 2 . . 2 . . 1 Rammed . | . . . . . . . . . . . . . . . . . . . Targets Rammed 13 | . . . . . . 1 5 2 . . 4 . . . . . . 1 Kicked 13 | . . . . . . 1 5 2 . . 4 . . . . . . 1 Crushed . | . . . . . . . . . . . . . . . . . . . Highest Temperature 411 | . 385 258 411 228 199 167 307 256 361 133 183 183 246 . 305 44 206 304 Average Temperature 78 | . 99 109 105 91 44 41 69 61 92 31 51 47 94 . 78 12 116 135 Received Heat Transfer 2779 | . 111 72 87 72 81 36 234 297 246 . 430 132 45 . 309 27 . 600 Effects 13 | . 1 2 2 . . . 3 3 . . . . . . 2 . . . Energy Bleed 4 | . 1 . 2 . . . . 1 . . . . . . . . . . Interference 9 | . . 2 . . . . 3 2 . . . . . . 2 . . . Siege Activations . | . . . . . . . . . . . . . . . . . . . Robots Corrupted . | . . . . . . . . . . . . . . . . . . . Combat Hostiles . | . . . . . . . . . . . . . . . . . . . Parts Fried 12 | . . . . . . . . . . 1 11 . . . . . . . Impact Corruptions 25 | . . . . . . . 1 . . 4 19 1 . . . . . . Robots Melted 2 | . . 1 . 1 . . . . . . . . . . . . . . Combat Hostiles 1 | . . . . 1 . . . . . . . . . . . . . . Parts Melted 13 | . 1 5 5 1 . . . 1 . . . . . . . . . . Heat Transferred 6419 | . 1554 481 2923 888 240 . . 222 111 . . . . . . . . . Parts Sabotaged 3 | . . . . . . . . . . . . . . . . . . 3 Parts Stolen . | . . . . . . . . . . . . . . . . . . . Parts Stripped . | . . . . . . . . . . . . . . . . . . . Power Chain Reactions . | . . . . . . . . . . . . . . . . . . . Missiles Intercepted . | . . . . . . . . . . . . . . . . . . . Alert | -11 -10 -10 -9 -9 -9 -8 -8 -8 -8 -8 -6 -6 -6 -6 -5 -5 -5 -5 ------- Run | Scr Mat Min Mat Min Exi Min Mat Sto Gar Rec Fac Low Low Dat Pro Fac Was Fac Peak Influence 1226 | . 244 222 583 401 . 223 508 425 1226 597 963 . . . . 223 123 433 Initial 953 | . . 43 86 211 . . 44 1 276 551 953 . . . . 163 78 79 Average 265 | . 112 108 387 172 . 134 210 225 583 377 291 . . . . 192 105 154 Maximum Alert Level 4 | . 1 1 2 2 . 1 2 2 4 2 3 . . . . 1 . 2 Low Security (%) 44 | 100 86 91 14 51 . 67 51 31 5 34 39 . . . . 59 100 65 Level 1 31 | . 13 8 26 24 . 32 35 62 25 16 35 . . . . 40 . 31 Level 2 17 | . . . 58 23 . . 13 5 36 49 13 . . . . . . 3 Level 3 5 | . . . . . . . . . 25 . 11 . . . . . . . Level 4 . | . . . . . . . . . 7 . . . . . . . . . Level 5 . | . . . . . . . . . . . . . . . . . . . High Security . | . . . . . . . . . . . . . . . . . . . Max Security . | . . . . . . . . . . . . . . . . . . . Squads Dispatched 37 | . 4 1 4 . . . 3 9 . 1 12 . . . 1 . . 2 Investigation 16 | . 4 . 2 . . . 1 3 . . 5 . . . . . . 1 Extermination 7 | . . . . . . . . . . . 6 . . . . . . 1 Reinforcement 3 | . . . 1 . . . 1 . . 1 . . . . . . . . Assault 4 | . . 1 1 . . . . . . . 1 . . . 1 . . . Garrison 7 | . . . . . . . 1 6 . . . . . . . . . . Intercept . | . . . . . . . . . . . . . . . . . . . Searches Triggered 2 | . . . . . . . . . . . 2 . . . . . . . Data Miner Redirects 1 | . . . . . . . . . . . . . . . . . . 1 Construction Impeded 2 | . . . . . . . 1 . . 1 . . . . . . . . Haulers Reinforced . | . . . . . . . . . . . . . . . . . . . Active Scanning Responses . | . . . . . . . . . . . . . . . . . . . Cargo Convoy Interrupts 1 | . . . . . . . . . . . . . . . . . . 1 Stealth | -11 -10 -10 -9 -9 -9 -8 -8 -8 -8 -8 -6 -6 -6 -6 -5 -5 -5 -5 --------- Run | Scr Mat Min Mat Min Exi Min Mat Sto Gar Rec Fac Low Low Dat Pro Fac Was Fac Distress Signals 13 | . . . 1 . . . 1 4 . . 3 . . . 1 1 . 2 Communications Jammed 115 | . . . . . . . . . . . . . . . 1 . . 114 Distress Signals 115 | . . . . . . . . . . . . . . . 1 . . 114 Times Spotted 370 | . 18 13 28 8 40 8 29 41 28 24 51 7 2 . 26 1 4 42 Peak Tracking Total 12 | . 3 4 5 4 9 3 7 6 4 4 12 4 1 . 11 1 4 12 Tactical Retreats 40 | . 1 . 1 . 22 . . . 4 . 6 . . . . 1 1 4 Traps | -11 -10 -10 -9 -9 -9 -8 -8 -8 -8 -8 -6 -6 -6 -6 -5 -5 -5 -5 ------- Run | Scr Mat Min Mat Min Exi Min Mat Sto Gar Rec Fac Low Low Dat Pro Fac Was Fac Traps Triggered 16 | . 3 . 2 . . . 1 . 4 . 5 . . . . 1 . . Indirectly . | . . . . . . . . . . . . . . . . . . . Trap Hack Attempts . | . . . . . . . . . . . . . . . . . . . Triggered . | . . . . . . . . . . . . . . . . . . . Disarmed . | . . . . . . . . . . . . . . . . . . . Reprogrammed . | . . . . . . . . . . . . . . . . . . . Reused . | . . . . . . . . . . . . . . . . . . . Traps Extracted . | . . . . . . . . . . . . . . . . . . . Installed . | . . . . . . . . . . . . . . . . . . . Triggered 2 | . . . . . . . . . . . . . 1 . 1 . . . Exploded 3 | . . . . . 3 . . . . . . . . . . . . . Machines | -11 -10 -10 -9 -9 -9 -8 -8 -8 -8 -8 -6 -6 -6 -6 -5 -5 -5 -5 ---------- Run | Scr Mat Min Mat Min Exi Min Mat Sto Gar Rec Fac Low Low Dat Pro Fac Was Fac Machines Disabled 30 | . . 1 1 . 10 1 1 4 6 . 4 1 . . . . . 1 Max in Single Turn 2 | . . . 1 . 2 1 1 1 1 . 1 1 . . . . . 1 Garrison Access 1 | . . . . . . . . . . . 1 . . . . . . . Machines Sabotaged . | . . . . . . . . . . . . . . . . . . . Overloaded Fab Kills . | . . . . . . . . . . . . . . . . . . . Hacking | -11 -10 -10 -9 -9 -9 -8 -8 -8 -8 -8 -6 -6 -6 -6 -5 -5 -5 -5 --------- Run | Scr Mat Min Mat Min Exi Min Mat Sto Gar Rec Fac Low Low Dat Pro Fac Was Fac Machines Accessed 88 | . 10 1 9 1 1 . 15 15 3 7 16 1 . 3 . . . 6 Terminals 61 | . 8 1 8 . . . 11 12 3 5 9 . . . . . . 4 Fabricators 6 | . . . . . . . . . . . 4 . . . . . . 2 Repair Stations 5 | . . . . . . . 2 1 . . 2 . . . . . . . Recycling Units 5 | . 2 . . . . . . 1 . 2 . . . . . . . . Scanalyzers 3 | . . . 1 . . . 2 . . . . . . . . . . . Garrison Access 2 | . . . . . . . . 1 . . 1 . . . . . . . Total Hacks 319 | . 25 2 30 1 1 . 61 52 6 27 66 1 . 25 . . . 22 Successful 197 | . 10 1 15 1 1 . 37 34 2 13 43 1 . 25 . . . 14 Failed 120 | . 15 1 15 . . . 23 17 4 14 23 . . . . . . 8 Catastrophic 10 | . 1 . . . . . 1 . . 1 5 . . . . . . 2 Database Lockouts 2 | . . . . . . . 1 1 . . . . . . . . . . Manual 137 | . 13 2 21 . 1 . 23 27 1 15 22 . . . . . . 12 Terminals 227 | . 23 2 28 . . . 42 45 6 22 41 . . . . . . 18 Fabricators 15 | . . . . . . . . . . . 11 . . . . . . 4 Repair Stations 24 | . . . . . . . 10 4 . . 10 . . . . . . . Recycling Units 8 | . 2 . . . . . . 1 . 5 . . . . . . . . Scanalyzers 11 | . . . 2 . . . 9 . . . . . . . . . . . Garrison Access 6 | . . . . . . . . 2 . . 4 . . . . . . . Terminal Hacks 115 | . 4 1 8 1 1 . 14 20 2 10 18 1 . 25 . . . 10 Record 6 | . . . . . . . . . . . . . . 6 . . . . Part Schematic 14 | . . . . . . . . 1 . 2 . . . 11 . . . . Robot Schematic 5 | . . . . . . . . . . . . . . 5 . . . . Robot Analysis 10 | . 1 1 2 . . . 1 1 . 2 . . . . . . . 2 Prototype ID Bank 21 | . . . 4 . . . 5 4 . 1 3 . . 3 . . . 1 Open Door 6 | . . . . 1 . . . 4 . . . 1 . . . . . . Branch Access Points 3 | . . . . . . . 1 . . . 1 . . . . . . 1 Emergency Access Points 2 | . . . . . . . . . 1 . 1 . . . . . . . Terminal Index 6 | . 1 . 1 . . . 1 1 . . 1 . . . . . . 1 Fabricator Index 1 | . . . . . . . . . . . 1 . . . . . . . Repair Station Index 2 | . . . . . . . . 1 . . . . . . . . . 1 Scanalyzer Index 1 | . . . . . . . . . . . . . . . . . . 1 Alert Level 11 | . . . . . . . 2 2 . 3 3 . . . . . . 1 Unreport Threat 11 | . . . 1 . . . 3 2 . 2 3 . . . . . . . Locate Traps 4 | . 2 . . . . . 1 . . . 1 . . . . . . . Recall Investigation 3 | . . . . . . . . . . . 2 . . . . . . 1 Recall Extermination 1 | . . . . . . . . . . . 1 . . . . . . . Hauler Manifests 2 | . . . . . . . . 2 . . . . . . . . . . Zone Layout 4 | . . . . . . . . 2 . . 1 . . . . . . 1 Patrol Navigation 1 | . . . . . . . . . 1 . . . . . . . . . EX-Prototype ID Bank 1 | . . . . . 1 . . . . . . . . . . . . . Fabricator Hacks 13 | . . . . . . . . . . . 10 . . . . . . 3 Load Schematic 7 | . . . . . . . . . . . 5 . . . . . . 2 Build 6 | . . . . . . . . . . . 5 . . . . . . 1 Repair Station Hacks 18 | . . . . . . . 8 4 . . 6 . . . . . . . Scan Component 10 | . . . . . . . 4 2 . . 4 . . . . . . . Repair 8 | . . . . . . . 4 2 . . 2 . . . . . . . Recycling Unit Hacks 1 | . . . . . . . . . . 1 . . . . . . . . Retrieve Matter 1 | . . . . . . . . . . 1 . . . . . . . . Scanalyzer 9 | . . . 2 . . . 7 . . . . . . . . . . . Insert Component 5 | . . . 1 . . . 4 . . . . . . . . . . . Analyze 4 | . . . 1 . . . 3 . . . . . . . . . . . Garrison Access Hacks 2 | . . . . . . . . 1 . . 1 . . . . . . . Unlock Access 1 | . . . . . . . . 1 . . . . . . . . . . Seal Access 1 | . . . . . . . . . . . 1 . . . . . . . Unauthorized Hacks 39 | . 6 . 5 . . . 8 9 . 2 8 . . . . . . 1 Terminals 33 | . 4 . 5 . . . 8 7 . . 8 . . . . . . 1 Track 4 | . . . 1 . . . . 2 . . 1 . . . . . . . Assimilate 8 | . 2 . . . . . 3 . . . 3 . . . . . . . Botnet 15 | . 1 . 2 . . . 4 3 . . 4 . . . . . . 1 Operators 6 | . 1 . 2 . . . 1 2 . . . . . . . . . . Fabricators . | . . . . . . . . . . . . . . . . . . . Repair Stations . | . . . . . . . . . . . . . . . . . . . Recycling Units 5 | . 2 . . . . . . 1 . 2 . . . . . . . . Tunnel 5 | . 2 . . . . . . 1 . 2 . . . . . . . . Scanalyzers . | . . . . . . . . . . . . . . . . . . . Garrison Access 1 | . . . . . . . . 1 . . . . . . . . . . Reprogram 1 | . . . . . . . . 1 . . . . . . . . . . Data Cores Recovered . | . . . . . . . . . . . . . . . . . . . Used . | . . . . . . . . . . . . . . . . . . . Hacking Detections 65 | . 8 1 8 . . . 15 8 2 4 13 . . . . . . 6 Full Trace Events 8 | . . . . . . . 1 . . 1 5 . . . . . . 1 Feedback Events 1 | . . . . . . . . . . . 1 . . . . . . . Corruption 1 | . . . . . . . . . . . 1 . . . . . . . Feedback Blocked . | . . . . . . . . . . . . . . . . . . . Robot Schematics Acquired 5 | . . . . . . . . . . . . . . 5 . . . . Robots Built . | . . . . . . . . . . . . . . . . . . . Authchips . | . . . . . . . . . . . . . . . . . . . Time . | . . . . . . . . . . . . . . . . . . . Total Robot Build Rating . | . . . . . . . . . . . . . . . . . . . Part Schematics Acquired 16 | . . . 1 . . . 1 1 . 2 . . . 11 . . . . Parts Built 6 | . . . . . . . . . . . 5 . . . . . . 1 Authchips 2 | . . . . . . . . . . . 2 . . . . . . . Time 454 | . . . . . . . . . . . 359 . . . . . . 95 Total Part Build Rating 36 | . . . . . . . . . . . 31 . . . . . . 5 Parts Repaired 8 | . . . . . . . 4 2 . . 2 . . . . . . . Time 603 | . . . . . . . 325 82 . . 196 . . . . . . . Parts Recycled . | . . . . . . . . . . . . . . . . . . . Recycled Matter . | . . . . . . . . . . . . . . . . . . . Retrieved Matter . | . . . . . . . . . . . . . . . . . . . Retrieved Components . | . . . . . . . . . . . . . . . . . . . Parts Scanalyzed 2 | . . . 1 . . . 1 . . . . . . . . . . . Part Schematics Acquired 2 | . . . 1 . . . 1 . . . . . . . . . . . Parts Damaged . | . . . . . . . . . . . . . . . . . . . Bothacking | -11 -10 -10 -9 -9 -9 -8 -8 -8 -8 -8 -6 -6 -6 -6 -5 -5 -5 -5 ------------ Run | Scr Mat Min Mat Min Exi Min Mat Sto Gar Rec Fac Low Low Dat Pro Fac Was Fac Used RIF Installer . | . . . . . . . . . . . . . . . . . . . Robots Hacked . | . . . . . . . . . . . . . . . . . . . Non-combat . | . . . . . . . . . . . . . . . . . . . Combat . | . . . . . . . . . . . . . . . . . . . Robot Hacks Applied . | . . . . . . . . . . . . . . . . . . . Relay Couplers Released . | . . . . . . . . . . . . . . . . . . . Fabnet Peak Effective % . | . . . . . . . . . . . . . . . . . . . Robots Rewired . | . . . . . . . . . . . . . . . . . . . Allies Hacked . | . . . . . . . . . . . . . . . . . . . Hacks Repelled . | . . . . . . . . . . . . . . . . . . . Allies | -11 -10 -10 -9 -9 -9 -8 -8 -8 -8 -8 -6 -6 -6 -6 -5 -5 -5 -5 -------- Run | Scr Mat Min Mat Min Exi Min Mat Sto Gar Rec Fac Low Low Dat Pro Fac Was Fac Total Allies 17 | . 1 2 . . . . 2 11 . . . . . . 1 . . . Largest Group 11 | . 1 3 2 . . . 2 11 10 . . . . . 1 . . . Highest-Rated Group 183 | . 10 71 40 . . . 20 183 166 . . . . . 96 . . . Highest-Rated Ally 96 | . 10 31 31 . . . 10 29 29 . . . . . 96 . . . Warlord Squad Rendezvous 1 | . . . . . . . . . . . . . . . . . . 1 Infantry 1 | . . . . . . . . . . . . . . . . . . 1 Total Orders 32 | . 2 4 . . . . 2 19 5 . . . . . . . . . STAY 17 | . 1 2 . . . . 1 10 3 . . . . . . . . . FOLLOW 15 | . 1 2 . . . . 1 9 2 . . . . . . . . . Ally Attacks 114 | . . 33 9 . . . . 45 24 . . . . . 3 . . . Total Damage 2019 | . . 707 147 . . . . 563 359 . . . . . 243 . . . Kills 26 | . . 9 3 . . . . 9 1 . . . . . 4 . . . Allies Corrupted . | . . . . . . . . . . . . . . . . . . . Allies Melted 1 | . . . . . . . . . . . . . . . 1 . . . Intel | -11 -10 -10 -9 -9 -9 -8 -8 -8 -8 -8 -6 -6 -6 -6 -5 -5 -5 -5 ------- Run | Scr Mat Min Mat Min Exi Min Mat Sto Gar Rec Fac Low Low Dat Pro Fac Was Fac Robot Analysis Total 10 | . 1 1 2 . . . 1 1 . 2 . . . . . . . 2 Derelict Logs Recovered 4 | . . 1 . 1 . . . . . . . 1 1 . . . . . Drone Launches . | . . . . . . . . . . . . . . . . . . . Drone Recoveries . | . . . . . . . . . . . . . . . . . . . Exploration | -11 -10 -10 -9 -9 -9 -8 -8 -8 -8 -8 -6 -6 -6 -6 -5 -5 -5 -5 ------------- Run | Scr Mat Min Mat Min Exi Min Mat Sto Gar Rec Fac Low Low Dat Pro Fac Was Fac Turns Passed 24677 | 56 1322 770 1151 1659 4021 758 2234 1917 1931 860 3689 1069 901 102 889 279 111 958 Spaces Moved 14835 | 45 946 618 709 595 2633 564 1269 899 1044 466 2252 738 600 81 600 133 90 553 Core 2 | 2 . . . . . . . . . . . . . . . . . . Treads . | . . . . . . . . . . . . . . . . . . . Legs 10119 | . . . . . 830 564 1269 899 1044 466 2252 738 600 81 600 133 90 553 Wheels 4714 | 43 946 618 709 595 1803 . . . . . . . . . . . . . Hover . | . . . . . . . . . . . . . . . . . . . Flight . | . . . . . . . . . . . . . . . . . . . Fastest Speed 50 | 50 90 105 110 120 105 120 120 120 120 120 120 120 120 120 120 120 120 120 Average Speed 121 | 91 103 112 118 120 137 120 122 120 120 120 120 123 120 120 120 120 120 122 Slowest Speed 210 | 100 105 120 120 120 210 120 190 120 120 120 190 190 120 120 120 120 120 190 Overloaded Moves . | . . . . . . . . . . . . . . . . . . . Propulsion Burnouts . | . . . . . . . . . . . . . . . . . . . Robots Hopped 1 | . . . . . . . . . . . . 1 . . . . . . Cave-ins Triggered . | . . . . . . . . . . . . . . . . . . . Exploration Rate (%) 67 | 3 97 98 66 86 92 92 85 95 83 91 41 68 64 68 67 4 70 16 Regions Visited 18 Branch Regions 10 Pre-discovered Areas 7 | . 2 . . . . . . 1 . 2 . 1 . 1 . . . . Known Exits Taken 8 | . . . . . . 1 1 1 . 1 1 1 1 1 . . . . Unknown Exits Taken 7 | 1 1 1 1 1 1 . . . . . . . . . 1 . . . Scrap Searched 6 | . . 1 . . . 1 . . . . . 3 1 . . . . . Spaces Dug 97 | . . . 7 12 . 18 9 6 . 8 2 25 1 . 2 . . 7 Terrain Destroyed 517 | . . . 19 26 25 68 45 7 75 8 57 35 1 . 99 . . 52 Melee 42 | . . . 2 1 . . 9 5 . 8 2 5 1 . 2 . . 7 Projectile 10 | . . . . . . 3 . 2 . . . . . . . . . 5 AOE 462 | . . . 17 25 25 65 36 . 75 . 55 30 . . 97 . . 37 Terrain Rammed . | . . . . . . . . . . . . . . . . . . . Walls Destroyed . | . . . . . . . . . . . . . . . . . . . Machines Disabled . | . . . . . . . . . . . . . . . . . . . Actions | -11 -10 -10 -9 -9 -9 -8 -8 -8 -8 -8 -6 -6 -6 -6 -5 -5 -5 -5 --------- Run | Scr Mat Min Mat Min Exi Min Mat Sto Gar Rec Fac Low Low Dat Pro Fac Was Fac Total 20134 | 55 1208 669 930 1515 2937 616 1800 1585 1606 705 3044 859 767 86 715 236 92 709 Wait 3865 | . 189 30 98 890 115 23 385 572 407 164 595 69 153 . 66 83 2 24 Move 14814 | 44 945 617 708 594 2632 563 1268 898 1041 465 2251 735 599 80 599 133 89 553 Hop 1 | . . . . . . . . . . . . 1 . . . . . . Pick Up 120 | 3 14 4 16 4 23 2 12 4 6 3 9 6 1 . 2 4 . 7 Fast Attach 89 | 6 5 1 10 . 21 1 9 6 2 2 4 6 . 3 1 2 1 9 Attach 49 | . . . 2 4 8 . 4 1 . . 11 . 1 . 3 2 . 13 Detach 13 | . . . 1 . 5 . 1 1 . 1 1 . . . . . . 3 Swap 225 | 2 5 1 20 6 13 5 21 18 37 10 46 14 5 . 10 1 . 11 Drop 168 | . 8 4 29 5 42 4 21 8 11 5 9 7 1 3 2 1 . 8 Fire 606 | . 42 12 44 11 26 17 65 63 93 45 78 14 6 . 30 10 . 50 Melee 167 | . . . 2 1 52 . 9 12 5 10 36 7 1 . 2 . . 30 Ram . | . . . . . . . . . . . . . . . . . . . Kick 13 | . . . . . . 1 5 2 . . 4 . . . . . . 1 Crush . | . . . . . . . . . . . . . . . . . . . Escape Stasis 4 | . . . . . . . . . 4 . . . . . . . . . Rewire . | . . . . . . . . . . . . . . . . . . . Trap . | . . . . . . . . . . . . . . . . . . . Miscellaneous . | . . . . . . . . . . . . . . . . . . . Route ------- -11/Scrapyard -10/Materials (discovered 4 exits: *Mat x3 / *Min) -10/Mines (discovered 2 exits: *Mat x2) -9/Materials (discovered 3 exits: *Mat x2 / *Min) -9/Mines (discovered 4 exits: *Mat x2 / *Exi / [*Zio]) -9/Exiles (discovered 2 exits: [*Min x2]) -8/Mines (discovered 2 exits: *Mat x2) -8/Materials (discovered 3 exits: [*Fac x2] / *Sto) -8/Storage (discovered 2 exits: [*Fac] / Gar) -8/Garrison (discovered 3 exits: *Rec x3) -8/Recycling -6/Factory (discovered 3 exits: [*Fac] / *Low x2) -6/Lower Caves -6/Lower Caves (discovered 2 exits: [*Fac] / *Dat) -6/Data Miner -5/Proximity Caves -5/Factory (discovered 3 exits: Fac x2 / Upp) -5/Waste -5/Factory (discovered 3 exits: *Fac / Upp x2) History --------- Turn | Location | Event 22 | -11/Scrapyard | Discovered new exit (range 15) 57 | -11/Scrapyard | Entered Materials 220 | -10/Materials | Discovered new exit (range 14) 304 | -10/Materials | Build established: Mutant 434 | -10/Materials | Discovered new exit (range 4) 554 | -10/Materials | Discovered new exit (range 16) 1194 | -10/Materials | Discovered new exit (range 4) 1379 | -10/Materials | Entered Mines 1379 | -10/Mines | Accompanied by 1 ally 1380 | -10/Mines | Met a Derelict testing a Signal Generator 1384 | -10/Mines | Found Signal Generator 1464 | -10/Mines | Escorted by a lone wolf Derelict 1576 | -10/Mines | Learned 8 Materials zone layouts 1585 | -10/Mines | A weapon hastily lodged in a ceiling crevice suddenly fell to the ground 1753 | -10/Mines | Discovered new exit (range 8) 1971 | -10/Mines | Received a Rocket Launcher from a helpful Derelict 2080 | -10/Mines | Found a damaged Exp. Sensor Array with a note attached 2083 | -10/Mines | Found Prototype Device 2134 | -10/Mines | Discovered new exit (range 7) 2149 | -10/Mines | Entered Materials 2149 | -9/Materials | Accompanied by 2 allies 2149 | -9/Materials | Evolved 2 slots: Utility x1, Weapon x1 2150 | -9/Materials | Identified exit to Materials 2227 | -9/Materials | Identified Exp. Sensor Array 2285 | -9/Materials | Discovered new exit (range 10) 2458 | -9/Materials | Build established: Gunner 2549 | -9/Materials | First assault squad dispatched 2661 | -9/Materials | Discovered exit to Materials (range 3) 2985 | -9/Materials | Build established: Tank 3300 | -9/Materials | Entered Mines 3301 | -9/Mines | Assembled infested the area 4242 | -9/Mines | A Derelict revealed a hidden shortcut to a safe place 4264 | -9/Mines | Learned Materials security intel 4271 | -9/Mines | Discovered exit to Materials (range 12) 4367 | -9/Mines | Deemed a non-threat by the Exiles lab entrance 4367 | -9/Mines | Discovered new exit (range 5) 4467 | -9/Mines | Discovered exit to Materials (range 13) 4548 | -9/Mines | Met a Derelict who couldn't figure out how to use a Trap Extractor 4959 | -9/Mines | Entered Exiles 5002 | -9/Exiles | Met 8R-AWN 5020 | -9/Exiles | Met EX-HEX 5060 | -9/Exiles | Met EX-BIN 5077 | -9/Exiles | Aligned with FarCom system 5078 | -9/Exiles | Given EX-Vault access code 5105 | -9/Exiles | Opened EX-Vault 5115 | -9/Exiles | Found Longsword +1 5120 | -9/Exiles | Found YOLO Cannon 5149 | -9/Exiles | Warned to stay clear of 0b10 Research branches 5186 | -9/Exiles | Met EX-DEC 5241 | -9/Exiles | Build established: Mutant 5322 | -9/Exiles | Discovered new exit (range 10) 5595 | -9/Exiles | Attacked by the Exiles 5777 | -9/Exiles | Found Prototype Ballistic Gun 5777 | -9/Exiles | Identified 8R-AWN's Boregun 5780 | -9/Exiles | Found 8R-AWN's Boregun 5927 | -9/Exiles | Destroyed 8R-AWN 6713 | -9/Exiles | Core integrity fell below 50% 6928 | -9/Exiles | Destroyed EX-BIN 6932 | -9/Exiles | Destroyed EX-HEX 6999 | -9/Exiles | Destroyed EX-DEC 7006 | -9/Exiles | Found Prototype Processor 7050 | -9/Exiles | Found Prototype Device 7050 | -9/Exiles | Identified System Purifier 7310 | -9/Exiles | Discovered new exit (range 15) 8259 | -9/Exiles | Found Prototype Device 8259 | -9/Exiles | Identified AS-neutralizer No. 17b 8365 | -9/Exiles | Found Deploy-a-Sentry 8968 | -9/Exiles | Build established: Gunner 8980 | -9/Exiles | Entered Mines 9249 | -8/Mines | Discovered exit to Materials (range 16) 9264 | -8/Mines | Discovered exit to Materials (range 8) 9738 | -8/Mines | Entered Materials 9738 | -8/Materials | Evolved 2 slots: Propulsion x1, Utility x1 9898 | -8/Materials | Destroyed 7 combat bots 9945 | -8/Materials | Identified Exp. Core Analyzer 10043 | -8/Materials | Build established: Tank 10148 | -8/Materials | Discovered new exit (range 16) 10288 | -8/Materials | Repaired Broken Adv. Myomer Leg 10343 | -8/Materials | Repaired Imp. Assault Rifle 10651 | -8/Materials | Discovered new exit (range 8) 10701 | -8/Materials | Discovered new exit (range 15) 10893 | -8/Materials | Garrison activated, responded to threat 10967 | -8/Materials | Identified exit to Storage 11089 | -8/Materials | Central database locked down 11900 | -8/Materials | Repaired Adv. Myomer Leg 11952 | -8/Materials | Repaired Imp. Assault Rifle 11972 | -8/Materials | Entered Storage 11972 | -8/Storage | Accompanied by 2 allies 11987 | -8/Storage | Central database locked down 12722 | -8/Storage | Garrison activated, responded to threat 13069 | -8/Storage | Assisted by bots powering up and referring to "LRC-V3" 13312 | -8/Storage | Repaired Hvy. Armor Plating 13357 | -8/Storage | Repaired Imp. Carbon-fiber Leg 13473 | -8/Storage | Discovered new exit (range 9) 13785 | -8/Storage | Garrison activated, responded to threat 13821 | -8/Storage | Identified exit to Garrison 13889 | -8/Storage | Entered Garrison 13889 | -8/Garrison | Accompanied by 10 allies 13910 | -8/Garrison | Spotted B-75 Beast 13910 | -8/Garrison | Spotted B-75 Beast 14028 | -8/Garrison | Triggered checkpoint 14068 | -8/Garrison | Triggered checkpoint 14486 | -8/Garrison | Triggered checkpoint 14943 | -8/Garrison | Discovered new exit (range 15) 15134 | -8/Garrison | Attempted to access garrison exit controls, blocked by remote lockdown 15184 | -8/Garrison | Triggered checkpoint 15342 | -8/Garrison | Discovered new exit (range 10) 15426 | -8/Garrison | Triggered checkpoint 15522 | -8/Garrison | Attempted to access garrison exit controls, blocked by remote lockdown 15593 | -8/Garrison | Triggered checkpoint 15794 | -8/Garrison | Triggered checkpoint 15809 | -8/Garrison | Discovered new exit (range 10) 15820 | -8/Garrison | Entered Recycling 15874 | -8/Recycling | Spotter reported a threat 15895 | -8/Recycling | Spotter reported a threat 15927 | -8/Recycling | Spotter reported a threat 16026 | -8/Recycling | Spotter reported a threat 16026 | -8/Recycling | Spotter reported a threat 16039 | -8/Recycling | Spotter reported a threat 16039 | -8/Recycling | Spotter reported a threat 16109 | -8/Recycling | Spotter reported a threat 16111 | -8/Recycling | Spotter reported a threat 16112 | -8/Recycling | Spotter reported a threat 16127 | -8/Recycling | Spotter reported a threat 16243 | -8/Recycling | Spotter reported a threat 16248 | -8/Recycling | Spotter reported a threat 16296 | -8/Recycling | Spotter reported a threat 16365 | -8/Recycling | Spotter reported a threat 16423 | -8/Recycling | Spotter reported a threat 16466 | -8/Recycling | Spotter reported a threat 16477 | -8/Recycling | Spotter reported a threat 16477 | -8/Recycling | Spotter reported a threat 16481 | -8/Recycling | Spotter reported a threat 16489 | -8/Recycling | Discovered new exit (range 15) 16594 | -8/Recycling | Spotter reported a threat 16610 | -8/Recycling | Spotter reported a threat 16611 | -8/Recycling | Spotter reported a threat 16664 | -8/Recycling | Spotter reported a threat 16677 | -8/Recycling | Identified exit to Factory 16678 | -8/Recycling | Spotter reported a threat 16680 | -8/Recycling | Entered Factory 16680 | -6/Factory | Evolved 4 slots: Propulsion x1, Utility x3 17014 | -6/Factory | Fabricated Adv. Myomer Leg (x1) 17030 | -6/Factory | Search patrols dispatched 17037 | -6/Factory | Build established: Hacker-Skirmisher 17078 | -6/Factory | Fabricated Adv. Myomer Leg (x1) 17380 | -6/Factory | Search patrols dispatched 17554 | -6/Factory | Fabricated Imp. System Shield? 17723 | -6/Factory | Identified exit to Lower Caves 17734 | -6/Factory | Build established: Hacker-Mutant 17939 | -6/Factory | Fabricated Imp. Heavy Armor Plating? 18047 | -6/Factory | Fabricated Adv. Myomer Leg? 18743 | -6/Factory | Build established: Hacker-Tank 19286 | -6/Factory | Build established: Hacker-Mutant 19315 | -6/Factory | Repaired Broken System Purifier? 19414 | -6/Factory | Repaired Enh. Autogun? 19943 | -6/Factory | Discovered new exit (range 15) 20011 | -6/Factory | Build established: Hacker-Skirmisher 20180 | -6/Factory | First assault squad dispatched 20369 | -6/Factory | Entered Lower Caves 20375 | -6/Lower Caves | Met a Warlord Commander 20376 | -6/Lower Caves | Learned location of Warlord (-4) 20382 | -6/Lower Caves | Found Encrypted Comm Array 20447 | -6/Lower Caves | Found Prototype Device 20638 | -6/Lower Caves | Attracted the attention of an 0b10 checkpoint 20992 | -6/Lower Caves | Build established: Skirmisher 21001 | -6/Lower Caves | Learned 8 Factory zone layouts 21305 | -6/Lower Caves | Build established: Machinist-Skirmisher 21423 | -6/Lower Caves | Discovered new exit (range 13) 21437 | -6/Lower Caves | Identified exit to Lower Caves 21438 | -6/Lower Caves | Entered another Lower Caves area 21480 | -6/Lower Caves | Discovered new exit (range 7) 22171 | -6/Lower Caves | Learned 8 Factory zone layouts 22219 | -6/Lower Caves | Discovered new exit (range 15) 22338 | -6/Lower Caves | Identified exit to Data Miner 22339 | -6/Lower Caves | Entered Data Miner 22339 | -6/Data Miner | Discovered new exit (range 6) 22369 | -6/Data Miner | Met Data Miner 22389 | -6/Data Miner | Learned location of Section 7 (-2) 22389 | -6/Data Miner | Acquired the access code to Warlord's prototype stash 22407 | -6/Data Miner | Received God Mode back door access code from Data Miner 22440 | -6/Data Miner | Identified exit to Proximity Caves 22441 | -6/Data Miner | Entered Proximity Caves 22835 | -5/Proximity Caves | Escorted by Enhanced Grunt 23165 | -5/Proximity Caves | Attracted the attention of an 0b10 outpost 23296 | -5/Proximity Caves | Destroyed 14 combat bots 23325 | -5/Proximity Caves | Discovered new exit (range 5) 23330 | -5/Proximity Caves | Entered Factory 23330 | -5/Factory | Evolved 2 slots: Power x1, Utility x1 23331 | -5/Factory | Identified exit to Factory 23331 | -5/Factory | Identified exit to Upper Caves 23593 | -5/Factory | Build established: Tank 23609 | -5/Factory | Sucked down chute 23609 | -5/Factory | Entered Waste 23618 | -5/Waste | Spotted C-40 Crusher 23619 | -5/Waste | Spotted C-40 Crusher 23620 | -5/Waste | Spotted C-40 Crusher 23624 | -5/Waste | EMP discharged 23637 | -5/Waste | Spotted C-40 Crusher 23641 | -5/Waste | Spotted C-40 Crusher 23661 | -5/Waste | Spotted C-40 Crusher 23671 | -5/Waste | Crushed by Compactor (1 part destroyed, 2 dropped) 23708 | -5/Waste | Discovered new exit (range 11) 23719 | -5/Waste | Identified exit to Factory 23720 | -5/Waste | Entered Factory 24044 | -5/Factory | Fabricated Imp. Heavy Armor Plating? 24105 | -5/Factory | Build established: Hacker-Mutant 24206 | -5/Factory | Discovered exit to Factory (range 13) 24226 | -5/Factory | Joined by Warlord Infantry squad 24524 | -5/Factory | Lost 7 parts (2n3u2w) 24625 | -5/Factory | Cargo convoy interrupted 24651 | -5/Factory | System corruption reached 10% 24656 | -5/Factory | Core integrity fell below 50% 24659 | -5/Factory | Incoming assault squad redirected 24672 | -5/Factory | Core integrity fell below 20% 24678 | -5/Factory | Destroyed by Y-64 Sentinel with KE Penetrator Last Messages --------------- 24656_ P-70 Sage destroyed. 24657_ P-70 Sage resets Y-64 Sentinel, system corruption cleaned. 24659_ ALERT: Higher priority target reported, redirecting assault. 24659_ Slug penetrates I-47 Archangel. 24661_ I-47 Archangel knocked back. 24662_ Slug penetrates P-70 Sage. 24665_ Penetrated by Slug. 24667_ System corrupted: Lgt. Antimatter Cannon rejected. 24668_ Penetrated by Slug. 24668_ Tiamat Missile Launcher destroyed. 24670_ Acquired Lgt. Antimatter Cannon. 24671_ Hrd. Medium Armor Plating destroyed. 24671_ R-10 Processor collects Hpw. Tractor Beam. 24672_ Y-64 Sentinel destroyed. 24674_ X-77 Beamer knocked back. 24674_ Adv. Myomer Leg destroyed. 24674_ R-10 Processor collects Med. Storage Unit. 24676_ X-77 Beamer knocked back. 24677_ Lgt. Antimatter Cannon destroyed. 24678_ Penetrated by Slug. Map ----- +----------------------------------------------------+ | #???????????????????????????????????????? | | ! #???????????????????????????????????????? | | ##########???????????????????????????????????????? | | ?????????????????????????????????????????????????? | | ?????????????????????????????????????????????????? | | ?????????????????????????????????????????????????? | | ?????????????????????????????????????????????????? | | ?????????????????????????????????????????????????? | | ???????????????????? ?????????????????????????? | | ???????????????????? ???????????????????????? | | ???????????????????# #???????????????????????? | | ???????????????????# ####????????????????????? | | ???????????????????# ?????????????????????? | | ???????????????????# ??????????????????????? | | #########?########## H??????????????????????? | | ??# # R ???????????????????????? | | "???# # ????????????????????????? | | Y"?# ##% ##???????????????????????? | | """ """ # ! ## ##???????????????????????? | | """ # !##R *#???###??????????????????? | | """ # ##=!!####T #########??????????? | | #! ] !#=%!==]] ?????????? | | """ """?# "%#=|]//=] ?????????? | | """ """? |%+!%=/%!=] ????????? | | """ """ *[*=!%/!==* ????????? | | % p %%%====@] ????????? | | %* [!%!!!;;;#######?????????????? | | ########## Y !x=%! ; #??????????????????? | | / =p!= #??????????????????? | | ! # ; % #??????????????????? | | """ # #?????????????????? | | """" # ##?????????????????? | | """" #% #??????????????????? | | #########; ;#??????????????????? | | """ #???????#; ??????????????????? | | """" #???????## ;###?????????????????? | | """" #????????#;;;;;;;;;#???????????????????? | | #????????### # #???????????????????? | | #??????????#########???????????????????? | | #??????????????????????????????????????? | | ###########??????????????????????????????????????? | | ?????????????????????????????????????????????????? | | ?????????????????????????????????????????????????? | | ?????????????????????????????????????????????????? | | ?????????????????????????????????????????????????? | | ?????????????????????????????????????????????????? | | ?????????????????????????????????????????????????? | | ?????????????????????????????????????????????????? | | ?????????????????????????????????????????????????? | | ?????????????????????????????????????????????????? | +----------------------------------------------------+ Best States ------------- Heat Dissipation 63 Energy Generation 24 Energy Capacity 960 Matter Stores 300 Matter Capacity 300 Sight Range 16 Robot Scan Range 20 Terrain Scan Density 10 Jamming Range 16 Armor Coverage 1050 Resistance: KI 30 Weapon Shielding 66 Weapon Cycling 25 Evasion (%) 55 Targeting Accuracy 8 Core Analysis 6 Offensive Hacking 22 Defensive Hacking 22 Authchip Count 2 Item Schematics ----------------- Exp. Sensor Array | -9/Materials | Scanalyzed Adv. Myomer Leg | -8/Materials | Scanalyzed Imp. System Shield | -8/Storage | Hacked Imp. Heavy Armor Plating | -8/Recycling | Hacked Hacking Suite | -8/Recycling | Hacked Combat Drone Bay | -6/Data Miner | Free Lgt. Regenerative Plating | -6/Data Miner | Free Cld. Nuclear Pulse Thruster | -6/Data Miner | Free Exp. Heat Sink | -6/Data Miner | Free Plasma Sword | -6/Data Miner | Free Field Propulsion Array | -6/Data Miner | Free Point Defense Array | -6/Data Miner | Free Hvy. Gauss Cannon | -6/Data Miner | Free Adv. Plasma Cannon | -6/Data Miner | Free Adv. VSS Leg | -6/Data Miner | Free Fusion Bomb Launcher | -6/Data Miner | Free Robot Schematics ------------------ G-50 Soldier | -6/Data Miner | Free S-27 Virus | -6/Data Miner | Free Y-64 Sentinel | -6/Data Miner | Free W-44 Eye | -6/Data Miner | Free A-27 Freighter | -6/Data Miner | Free Fabricated ------------ Adv. Myomer Leg | x1 | -6/Factory | Authchip Adv. Myomer Leg | x1 | -6/Factory | Authchip Imp. System Shield | x1 | -6/Factory Imp. Heavy Armor Plating | x1 | -6/Factory Adv. Myomer Leg | x1 | -6/Factory Imp. Heavy Armor Plating | x1 | -5/Factory Alien Tech Used ----------------- None Achievements -------------- None Challenges ------------ None Game ------ Seed DecoderThermoelectricMatter Manual? 0 Play Time 04:27:39 Cumulative 617.9 hours Start 2022.12.17 @ 10:34:52 End 2022.12.17 @ 22:23:58 Sessions 7 Manual Loads 0 Difficulty Rogue Special Mode None Game No. 199 Rogue 195 Adventurer 4 Explorer 0 Win Type - Total 17 Types 7/2/6/0/0/0/1/1/0 Lore% 86 Gallery% 89 Achievement% 77 Wizard Run 0 Options --------- ASCII 1 Keyboard 0 Movement Arrows Keybinds 0 Fullscreen 1 Font 18/SmallcapsGlow Map View 76x50 Tactical HUD 1 Map Filters NONE Filters NONE Steam 1 RUN: 8585a69a-64cb-4857-8380-e78d923fed5b